bitfinex-derivatives/quotes_BTCF0:USTF0_20250208
["timestamp","ask_amount","ask_price","bid_price","bid_amount"]
[1739051476843,0.2090807,96576.0,96575.0,0.42848]
[1739051481643,0.2090807,96576.0,96575.0,0.06768]
[1739051481949,0.2090807,96576.0,96575.0,0.42848]
[1739051487748,0.002,96576.0,96575.0,0.42848]
[1739051489453,0.002,96576.0,96575.0,0.6355624]
[1739051489653,0.18634383,96584.0,96583.0,0.2070652]
[1739051489851,0.18634383,96584.0,96583.0,0.5678652]
[1739051490046,0.0302,96593.0,96583.0,0.5678652]
[1739051491348,0.2372444,96593.0,96583.0,0.5678652]
[1739051491549,0.00655349,96585.0,96583.0,0.5678652]
[1739051491859,0.004,96584.0,96583.0,0.5678652]
[1739051492860,0.005,96585.0,96583.0,0.5678652]
[1739051493155,0.009,96585.0,96583.0,0.5678652]
[1739051493550,0.004,96584.0,96583.0,0.5678652]
[1739051493955,0.009,96584.0,96583.0,1.3336252]
[1739051494455,0.009,96584.0,96583.0,1.34430088]
[1739051494661,0.004,96584.0,96583.0,1.34430088]
[1739051495056,0.005,96585.0,96583.0,1.34430088]
[1739051495257,0.009,96585.0,96583.0,1.34430088]
[1739051495765,0.004,96584.0,96583.0,1.34430088]
[1739051496450,0.0302,96593.0,96583.0,1.13723568]
[1739051496652,0.005,96584.0,96583.0,1.34430088]
[1739051497763,0.004,96585.0,96583.0,1.34430088]
[1739051498360,0.005,96584.0,96583.0,1.34430088]
[1739051498758,0.009,96584.0,96583.0,1.34430088]
[1739051499155,0.005,96584.0,96583.0,1.34430088]
[1739051499762,0.009,96584.0,96583.0,1.34430088]
[1739051499961,0.004,96584.0,96583.0,1.34430088]
[1739051500762,0.009,96584.0,96583.0,1.34430088]
[1739051507962,0.009,96584.0,96583.0,0.98350088]
[1739051508158,0.009,96584.0,96583.0,1.34430088]
[1739051510977,0.009,96584.0,96583.0,1.20447568]
[1739051511269,0.009,96584.0,96583.0,1.20451568]
[1739051511460,0.0406,96584.0,96583.0,1.20451568]
[1739051511668,0.0406,96584.0,96583.0,1.13723568]
[1739051511962,0.0406,96584.0,96583.0,0.77643568]
[1739051518465,0.2070738,96579.0,96578.0,0.3608]
[1739051518859,0.2070824,96575.0,96574.0,0.00015527]
[1739051522069,0.2070824,96575.0,96574.0,8.787e-05]
[1739051522369,0.2080824,96575.0,96574.0,8.787e-05]
[1739051522763,0.2110824,96575.0,96574.0,8.787e-05]
[1739051523374,0.2090824,96575.0,96574.0,8.787e-05]
[1739051523574,0.2100824,96575.0,96574.0,8.787e-05]
[1739051523870,0.2090824,96575.0,96574.0,8.787e-05]
[1739051524379,0.2080824,96575.0,96574.0,8.787e-05]
[1739051524669,0.2100824,96575.0,96574.0,8.787e-05]
[1739051525466,0.2110824,96575.0,96574.0,8.787e-05]
[1739051525964,0.2090824,96575.0,96574.0,8.787e-05]
[1739051526470,0.2100824,96575.0,96574.0,8.787e-05]
[1739051526681,0.2110824,96575.0,96574.0,8.787e-05]
[1739051527070,0.5718824,96575.0,96574.0,8.787e-05]
[1739051527271,0.5718824,96575.0,96566.0,0.01058541]
[1739051527476,0.2070996,96567.0,96565.0,0.7664]
[1739051527678,0.0322,96566.0,96565.0,0.76572]
[1739051529379,0.0322,96566.0,96565.0,0.77629287]
[1739051530077,0.0322,96566.0,96565.0,0.77829287]
[1739051531981,0.0332,96566.0,96565.0,0.77729287]
[1739051532372,0.0322,96566.0,96565.0,0.77729287]
[1739051532682,0.0332,96566.0,96565.0,0.77729287]
[1739051532869,0.0332,96566.0,96565.0,0.77629287]
[1739051533074,0.0342,96566.0,96565.0,0.77629287]
[1739051533778,0.0332,96566.0,96565.0,0.77629287]
[1739051533975,0.001,96566.0,96565.0,0.77629287]
[1739051535378,0.2070996,96567.0,96565.0,0.77629287]
[1739051538377,0.2090996,96567.0,96565.0,0.77629287]
[1739051539585,0.2110996,96567.0,96565.0,0.77629287]
[1739051542585,0.2090996,96567.0,96565.0,0.77629287]
[1739051543989,0.2070996,96567.0,96565.0,0.77629287]
[1739051544282,0.2090996,96567.0,96565.0,0.77629287]
[1739051544884,0.2080996,96567.0,96565.0,0.77629287]
[1739051545085,0.2090996,96567.0,96565.0,0.77629287]
[1739051545288,0.2110996,96567.0,96565.0,0.77629287]
[1739051545678,0.2090996,96567.0,96565.0,0.77629287]
[1739051545878,0.2110996,96567.0,96565.0,0.77629287]
[1739051546988,0.2110996,96567.0,96565.0,0.01057287]
[1739051547296,0.2071167,96559.0,96558.0,0.3936]
[1739051547980,0.2071167,96559.0,96558.0,0.0328]
[1739051549286,0.2071167,96559.0,96558.0,0.04361857]
[1739051550185,0.2071167,96559.0,96558.0,0.04461857]
[1739051551680,0.2071167,96559.0,96558.0,0.04361857]
[1739051553388,0.2071167,96559.0,96558.0,0.04461857]
[1739051553693,0.2071167,96559.0,96558.0,0.04561857]
[1739051554083,0.2071167,96559.0,96558.0,0.04461857]
[1739051554278,0.2071167,96559.0,96558.0,0.04661857]
[1739051554684,0.2071167,96559.0,96558.0,0.04561857]
[1739051555392,0.2071167,96559.0,96558.0,0.04661857]
[1739051556380,0.2071167,96559.0,96558.0,0.04461857]
[1739051556584,0.2071167,96559.0,96558.0,0.04561857]
[1739051563301,0.2071074,96564.0,96562.0,0.2071099]
[1739051563598,0.2071074,96564.0,96563.0,0.3608]
[1739051564887,0.2081074,96564.0,96563.0,0.3608]
[1739051565501,0.2091074,96564.0,96563.0,0.3608]
[1739051571101,0.002,96564.0,96558.0,0.01081857]
[1739051571404,0.2071167,96559.0,96557.0,0.06708]
[1739051573304,0.2071167,96559.0,96557.0,0.06808]
[1739051574109,0.2071167,96559.0,96557.0,0.06908]
[1739051574601,0.2071167,96559.0,96557.0,0.06808]
[1739051574810,0.2071167,96559.0,96557.0,0.06708]
[1739051575106,0.2071167,96559.0,96557.0,0.06808]
[1739051577696,0.2071167,96559.0,96557.0,0.2751996]
[1739051582407,0.2071189,96558.0,96557.0,0.2751996]
[1739051584917,0.2071189,96558.0,96557.0,0.2761996]
[1739051585518,0.2071189,96558.0,96557.0,0.2741996]
[1739051585720,0.2081189,96558.0,96557.0,0.2801996]
[1739051586719,0.2081189,96558.0,96557.0,0.2811996]
[1739051587722,0.2071189,96558.0,96557.0,0.2761996]
[1739051587921,0.2081189,96558.0,96557.0,0.2821996]
[1739051588119,0.2081189,96558.0,96557.0,0.2801996]
[1739051588322,0.2081189,96558.0,96557.0,0.2811996]
[1739051588521,0.2071189,96558.0,96557.0,0.2751996]
[1739051588819,0.2071189,96558.0,96557.0,0.2741996]
[1739051590823,0.2071189,96558.0,96557.0,0.06708]
[1739051591523,0.3608,96562.0,96550.0,0.7666]
[1739051591716,0.2071339,96551.0,96550.0,0.76592]
[1739051592116,0.5679339,96551.0,96550.0,0.76592]
[1739051592523,0.5679339,96551.0,96549.0,0.18601008]
[1739051592722,0.0321,96550.0,96549.0,0.18601008]
[1739051594929,0.0321,96550.0,96549.0,0.18901008]
[1739051595227,0.0321,96550.0,96549.0,0.19301008]
[1739051596330,0.2523,96550.0,96549.0,0.007]
[1739051596921,0.2071446,96546.0,96545.0,0.0015535]
[1739051598223,0.2081446,96546.0,96545.0,0.0075535]
[1739051598529,0.2081446,96546.0,96545.0,0.0125535]
[1739051622036,0.2081446,96546.0,96545.0,0.00759005]
[1739051625746,0.26815017,96546.0,96545.0,0.00759005]
[1739051629743,0.2081446,96546.0,96545.0,0.00759005]
[1739051631353,0.001,96546.0,96545.0,0.00759005]
[1739051632237,0.001,96546.0,96545.0,0.07463005]
[1739051637555,0.001,96546.0,96545.0,0.43543005]
[1739051638452,0.001,96546.0,96545.0,0.64257675]
[1739051641651,0.001,96546.0,96545.0,0.57553675]
[1739051641852,0.001,96546.0,96545.0,0.64257675]
[1739051642158,0.2081446,96546.0,96545.0,0.43543005]
[1739051643657,0.2081446,96546.0,96545.0,0.36839005]
[1739051643858,0.2081446,96546.0,96545.0,0.43543005]
[1739051653067,0.2081446,96546.0,96545.0,0.07463005]
[1739051660563,0.2081446,96546.0,96545.0,0.00759005]
[1739051663865,0.5689446,96546.0,96545.0,0.00759005]
[1739051664567,0.5820189,96546.0,96545.0,0.00759005]
[1739051667674,0.3748743,96546.0,96541.0,0.12835088]
[1739051667878,0.2071531,96542.0,96541.0,0.12835088]
[1739051669077,0.2071531,96542.0,96541.0,0.13935088]
[1739051670068,0.2071531,96542.0,96541.0,0.13335088]
[1739051670274,0.2071531,96542.0,96541.0,0.13635088]
[1739051671380,0.2071531,96542.0,96541.0,0.13135088]
[1739051671678,0.2071531,96542.0,96541.0,0.13435088]
[1739051671978,0.2071531,96542.0,96541.0,0.13135088]
[1739051672180,0.2071531,96542.0,96541.0,0.13235088]
[1739051672874,0.5679531,96542.0,96541.0,0.13235088]
[1739051675273,0.5679531,96542.0,96541.0,0.004]
[1739051675472,0.2071746,96532.0,96531.0,0.06704]
[1739051676584,0.2081746,96532.0,96531.0,0.07204]
[1739051676766,0.2081746,96532.0,96531.0,0.08542927]
[1739051677978,0.2091746,96532.0,96531.0,0.02338927]
[1739051690882,0.2081746,96532.0,96531.0,0.01838927]
[1739051691078,0.2111746,96532.0,96531.0,0.01338927]
[1739051691285,0.004,96532.0,96525.0,0.00155378]
[1739051691475,0.2071832,96528.0,96525.0,0.00155378]
[1739051693991,0.2071832,96528.0,96527.0,0.001]
[1739051694583,0.2071832,96528.0,96527.0,0.01467645]
[1739051704693,0.2071832,96528.0,96527.0,0.00807755]
[1739051704894,0.2071875,96526.0,96525.0,0.00155378]
[1739051706286,0.2071875,96526.0,96525.0,0.01642188]
[1739051707393,0.2071875,96526.0,96525.0,0.01742188]
[1739051716899,0.2071875,96526.0,96525.0,0.0158681]
[1739051754636,0.2071875,96526.0,96525.0,0.5838577]
[1739051755534,0.2202,96533.0,96532.0,0.2071746]
[1739051755724,0.20731086,96541.0,96540.0,0.2071574]
[1739051755929,0.20731086,96541.0,96540.0,0.5679574]
[1739051757033,0.20731086,96541.0,96540.0,0.5689574]
[1739051757034,0.21231086,96541.0,96540.0,0.5689574]
[1739051758337,0.21231086,96541.0,96540.0,0.58490001]
[1739051758525,0.21231086,96541.0,96540.0,0.37774261]
[1739051759030,0.29058507,96555.0,96554.0,0.2071274]
[1739051759339,0.29058507,96555.0,96554.0,0.4278]
[1739051760342,0.29958507,96555.0,96554.0,0.4278]
[1739051761030,0.33018507,96555.0,96554.0,0.4278]
[1739051761229,0.1218027,96555.0,96554.0,0.4278]
[1739051763439,0.1218027,96555.0,96554.0,0.067]
[1739051766967,0.2071317,96552.0,96551.0,0.3608]
[1739051767259,0.1218027,96555.0,96542.0,0.2071526]
[1739051767461,0.1218027,96555.0,96543.0,0.067]
[1739051767758,0.2071454,96546.0,96543.0,0.067]
[1739051768162,0.2071475,96545.0,96543.0,0.067]
[1739051769848,0.2071475,96545.0,96542.0,0.22289094]
[1739051770059,0.2071499,96544.0,96542.0,0.01573834]
[1739051770255,0.2071499,96544.0,96539.0,0.4278]
[1739051770256,0.2071499,96544.0,96543.0,0.001]
[1739051770760,0.2121467,96545.0,96543.0,0.001]
[1739051770961,0.2191467,96545.0,96543.0,0.001]
[1739051771261,0.007,96545.0,96540.0,0.067]
[1739051771563,0.2071553,96541.0,96540.0,0.067]
[1739051772056,0.007,96544.0,96539.0,0.37667414]
[1739051772264,0.2700574,96540.0,96539.0,0.37667414]
[1739051774265,0.2740574,96540.0,96539.0,0.37667414]
[1739051775164,0.2800574,96540.0,96539.0,0.37667414]
[1739051780855,0.2800574,96540.0,96539.0,0.01587414]
[1739051781059,0.0729,96540.0,96536.0,0.4278]
[1739051781253,0.2071639,96537.0,96536.0,0.4278]
[1739051781862,0.2071639,96537.0,96536.0,0.3608]
[1739051782066,0.2071639,96537.0,96536.0,0.44364569]
[1739051783462,0.2101639,96537.0,96536.0,0.44364569]
[1739051784472,0.2111639,96537.0,96536.0,0.44364569]
[1739051785171,0.2071639,96537.0,96536.0,0.44364569]
[1739051785473,0.2081639,96537.0,96536.0,0.44364569]
[1739051786170,0.2071639,96537.0,96536.0,0.08284569]
[1739051789264,0.2081639,96537.0,96536.0,0.08284569]
[1739051790663,0.2071639,96537.0,96536.0,0.08284569]
[1739051790862,0.2071639,96537.0,96536.0,0.08384569]
[1739051791471,0.2071639,96537.0,96536.0,0.08484569]
[1739051791974,0.2071639,96537.0,96536.0,0.08684569]
[1739051792470,0.2071639,96537.0,96536.0,0.08484569]
[1739051792776,0.2071639,96537.0,96536.0,0.08584569]
[1739051793872,0.2071639,96537.0,96536.0,0.08384569]
[1739051794279,0.2071639,96537.0,96536.0,0.08284569]
[1739051794469,0.2071639,96537.0,96536.0,0.08484569]
[1739051798680,0.2071639,96537.0,96536.0,0.08384569]
[1739051799580,0.2071639,96537.0,96536.0,0.08284569]
[1739051801175,0.2071639,96537.0,96536.0,0.08384569]
[1739051801484,0.2071639,96537.0,96536.0,0.08484569]
[1739051801875,0.2071639,96537.0,96536.0,0.08384569]
[1739051802778,0.2071639,96537.0,96536.0,0.08284569]
[1739051802979,0.2081639,96537.0,96536.0,0.08284569]
[1739051803575,0.2071639,96537.0,96536.0,0.08384569]
[1739051804075,0.2071639,96537.0,96536.0,0.08484569]
[1739051815491,0.2071639,96537.0,96536.0,0.08384569]
[1739051815677,0.2071639,96537.0,96536.0,0.08284569]
[1739051821794,0.2071639,96537.0,96536.0,0.08384569]
[1739051822199,0.2071639,96537.0,96536.0,0.08484569]
[1739051823099,0.2071639,96537.0,96536.0,0.08384569]
[1739051823796,0.2071639,96537.0,96536.0,0.08284569]
[1739051825291,0.2081639,96537.0,96536.0,0.08284569]
[1739051825892,0.001,96537.0,96536.0,0.29001169]
[1739051826091,0.2071558,96541.0,96540.0,0.2071574]
[1739051828199,0.18594588,96550.0,96537.0,0.0324]
[1739051828398,0.001,96541.0,96540.0,0.12971278]
[1739051828597,0.001,96541.0,96537.0,0.0324]
[1739051829288,0.001,96541.0,96540.0,0.2071574]
[1739051829289,0.2071555,96541.0,96540.0,0.2071574]
[1739051829494,0.2091555,96541.0,96540.0,0.2071574]
[1739051829896,0.2091555,96541.0,96540.0,0.5679574]
[1739051830097,0.2071555,96541.0,96540.0,0.5679574]
[1739051831009,0.2081555,96541.0,96540.0,0.5679574]
[1739051831401,0.2091555,96541.0,96540.0,0.5679574]
[1739051833894,0.002,96541.0,96540.0,0.5679574]
[1739051841012,0.2091553,96541.0,96540.0,0.5679574]
[1739051845308,0.2091553,96541.0,96540.0,0.3608]
[1739051855112,0.002,96541.0,96540.0,0.5679574]
[1739051858225,0.001,96541.0,96540.0,0.5679574]
[1739051858524,0.003,96541.0,96540.0,0.5679574]
[1739051862722,0.2071342,96551.0,96544.0,0.2071468]
[1739051862920,0.2071342,96551.0,96550.0,0.3608]
[1739051863129,0.2071342,96551.0,96550.0,0.42776]
[1739051864427,0.2121342,96551.0,96550.0,0.42776]
[1739051865228,0.2121342,96551.0,96550.0,0.3608]
[1739051865229,0.2181342,96551.0,96550.0,0.3608]
[1739051865526,0.207151,96543.0,96542.0,0.3608]
[1739051865734,0.207151,96543.0,96542.0,0.42772]
[1739051865931,0.207151,96543.0,96542.0,0.3608]
[1739051866127,0.207151,96543.0,96542.0,0.42772]
[1739051866529,0.207151,96543.0,96542.0,0.3608]
[1739051866934,0.208151,96543.0,96542.0,0.3608]
[1739051867533,0.211151,96543.0,96542.0,0.3608]
[1739051867936,0.211151,96543.0,96542.0,0.37548394]
[1739051881043,0.004,96543.0,96542.0,0.58263704]
[1739051889046,0.004,96543.0,96542.0,0.22183704]
[1739051889344,0.004,96543.0,96542.0,0.58263704]
[1739051894644,0.004,96543.0,96542.0,0.22183704]
[1739051894941,0.004,96543.0,96542.0,0.58263704]
[1739051895344,0.2071172,96559.0,96542.0,0.37548394]
[1739051895549,0.2071167,96559.0,96558.0,0.3608]
[1739051896645,0.2171167,96559.0,96558.0,0.3608]
[1739051897052,0.2161167,96559.0,96558.0,0.3608]
[1739051897254,0.2231167,96559.0,96558.0,0.3618]
[1739051899455,0.2141167,96559.0,96558.0,0.3628]
[1739051899655,0.2071167,96559.0,96558.0,0.3618]
[1739051900358,0.2071167,96559.0,96558.0,0.3608]
[1739051901147,0.2071167,96559.0,96558.0,0.3618]
[1739051901456,0.2071167,96559.0,96558.0,0.3628]
[1739051902459,0.2071167,96559.0,96558.0,0.3618]
[1739051902848,0.2071167,96559.0,96558.0,0.3608]
[1739051904952,0.2071167,96559.0,96558.0,0.37496539]
[1739051909160,0.2071167,96559.0,96558.0,0.01416539]
[1739051909360,0.2071188,96558.0,96557.0,0.3608]
[1739051910661,0.2071188,96558.0,96557.0,0.3618]
[1739051910850,0.2071188,96558.0,96557.0,0.002]
[1739051911050,0.2071188,96558.0,96557.0,0.3628]
[1739051913356,0.2071188,96558.0,96557.0,0.37706027]
[1739051915862,0.2071188,96558.0,96557.0,0.37606027]
[1739051916165,0.2071188,96558.0,96557.0,0.37706027]
[1739051922858,0.2071188,96558.0,96557.0,0.37606027]
[1739051923059,0.2071188,96558.0,96557.0,0.37506027]
[1739051924371,0.2071424,96547.0,96546.0,0.95258605]
[1739051924572,0.2071424,96547.0,96546.0,0.95178605]
[1739051925069,0.2071424,96547.0,96546.0,0.9655551]
[1739051926767,0.2071424,96547.0,96546.0,0.77968905]
[1739051928166,0.2071424,96547.0,96546.0,0.01376905]
[1739051928367,0.3608,96554.0,96545.0,0.06688]
[1739051928566,0.2392446,96546.0,96545.0,0.06688]
[1739051929673,0.2392446,96546.0,96545.0,0.06888]
[1739051931371,0.2392446,96546.0,96545.0,0.08274792]
[1739051941682,0.2392446,96546.0,96545.0,0.08174792]
[1739051942384,0.2392446,96546.0,96545.0,0.08274792]
[1739051956596,0.2392446,96546.0,96545.0,0.08174792]
[1739051956790,0.2392446,96546.0,96545.0,0.08074792]
[1739051956997,0.2392446,96546.0,96545.0,0.01386792]
[1739051957200,0.2071488,96544.0,96543.0,0.3608]
[1739051958490,0.2071488,96544.0,96543.0,0.3618]
[1739051958789,0.2071488,96544.0,96543.0,0.37533051]
[1739051960289,0.2393488,96544.0,96543.0,0.37533051]
[1739051960591,0.2393488,96544.0,96543.0,0.3618]
[1739051960792,0.2393488,96544.0,96543.0,0.001]
[1739051964099,0.42568671,96544.0,96543.0,0.001]
[1739051967003,0.78648671,96544.0,96543.0,0.001]
[1739051969308,0.6001488,96544.0,96543.0,0.001]
[1739051976315,0.2393488,96544.0,96543.0,0.001]
[1739051976516,0.6001488,96544.0,96543.0,0.001]
[1739051979311,0.2393488,96544.0,96543.0,0.001]
[1739051979617,0.6001488,96544.0,96543.0,0.001]
[1739051980112,0.5679488,96544.0,96543.0,0.001]
[1739051980718,0.2071488,96544.0,96543.0,0.3618]
[1739051981408,0.2071488,96544.0,96543.0,0.4268]
[1739051981609,0.18633791,96549.0,96543.0,0.4268]
[1739051981804,0.39347671,96549.0,96546.0,0.2071442]
[1739051982017,0.18633791,96549.0,96547.0,0.2740221]
[1739051982808,0.13643791,96549.0,96547.0,0.2740221]
[1739051983220,0.13743791,96549.0,96547.0,0.2740221]
[1739051984219,0.13843791,96549.0,96547.0,0.2740221]
[1739051984623,0.002,96549.0,96547.0,0.2740221]
[1739051985022,0.2071172,96559.0,96547.0,0.06688]
[1739051985217,0.2071172,96559.0,96555.0,0.3608]
[1739051985822,0.2071217,96557.0,96555.0,0.5679251]
[1739051986913,0.2071217,96557.0,96555.0,0.5689251]
[1739051987611,0.00155385,96563.0,96555.0,0.5689251]
[1739051987612,0.00155385,96563.0,96562.0,0.2071102]
[1739051987817,0.07319153,96572.0,96571.0,0.2070909]
[1739051988021,0.2070721,96580.0,96577.0,0.2070766]
[1739051988224,0.2070721,96580.0,96579.0,0.3608]
[1739051988427,0.0319,96597.0,96579.0,0.3608]
[1739051988726,0.2070637,96584.0,96580.0,0.06485639]
[1739051988927,0.0319,96597.0,96579.0,0.3608]
[1739051988928,0.2070672,96583.0,96581.0,0.0323]
[1739051989622,0.2070672,96583.0,96582.0,0.06684]
[1739051991024,0.2160672,96583.0,96582.0,0.06784]
[1739051991228,0.2250672,96583.0,96582.0,0.06784]
[1739051992330,0.009,96583.0,96582.0,0.06784]
[1739051992522,0.018,96583.0,96582.0,0.002]
[1739051992827,0.018,96583.0,96582.0,0.0333]
[1739052000925,0.00011223,96583.0,96582.0,0.0333]
[1739052001325,0.00015536,96598.0,96596.0,0.2070359]
[1739052001633,0.00015536,96598.0,96597.0,0.42764]
[1739052001933,0.20718836,96598.0,96597.0,0.4276]
[1739052002126,0.20718836,96598.0,96597.0,0.3608]
[1739052002334,0.20718836,96598.0,96597.0,0.4276]
[1739052003421,0.21618836,96598.0,96597.0,0.4276]
[1739052003624,0.22018836,96598.0,96597.0,0.3608]
[1739052003835,0.22018836,96598.0,96597.0,0.4276]
[1739052004220,0.01315536,96598.0,96597.0,0.4296]
[1739052005127,0.2069863,96620.0,96614.0,0.2069982]
[1739052005336,0.2069863,96620.0,96619.0,0.3608]
[1739052005533,0.0628,96629.0,96619.0,0.3608]
[1739052005730,0.0628,96629.0,96619.0,0.45962082]
[1739052005931,0.206982,96622.0,96619.0,0.45962082]
[1739052006134,0.2069848,96621.0,96619.0,0.3608]
[1739052006333,0.009,96620.0,96619.0,0.3608]
[1739052007137,0.009,96622.0,96619.0,0.3618]
[1739052007338,0.009,96622.0,96619.0,0.3628]
[1739052007641,0.2069843,96621.0,96619.0,0.3628]
[1739052008437,0.2069843,96621.0,96619.0,0.3755062]
[1739052008639,0.2069843,96621.0,96619.0,0.3745062]
[1739052008839,0.002,96620.0,96619.0,0.3755062]
[1739052009635,0.2089843,96621.0,96619.0,0.3755062]
[1739052011737,0.002,96620.0,96619.0,0.3755062]
[1739052011933,0.2069843,96621.0,96619.0,0.3755062]
[1739052015234,0.2099843,96621.0,96619.0,0.3755062]
[1739052021251,0.2099843,96621.0,96619.0,0.0147062]
[1739052023841,0.2099843,96621.0,96619.0,0.00689966]
[1739052024140,0.2099843,96621.0,96619.0,0.002]
[1739052027255,0.2099843,96621.0,96619.0,0.01481007]
[1739052033960,0.2099843,96621.0,96619.0,0.002]
[1739052039566,0.2069859,96620.0,96619.0,0.002]
[1739052040962,0.2099859,96620.0,96619.0,0.001]
[1739052041154,0.2099859,96620.0,96619.0,0.002]
[1739052043659,0.2099859,96620.0,96619.0,0.0009255]
[1739052044259,0.39622004,96620.0,96619.0,0.0009255]
[1739052047463,0.2099859,96620.0,96619.0,0.0009255]
[1739052053370,0.27607206,96620.0,96619.0,0.0009255]
[1739052056068,0.06908616,96620.0,96618.0,0.01282936]
[1739052056366,0.06908616,96620.0,96617.0,0.0668]
[1739052056367,0.2069902,96618.0,96617.0,0.0668]
[1739052058870,0.2069902,96618.0,96617.0,0.07920837]
[1739052059371,0.2079902,96618.0,96617.0,0.07920837]
[1739052059869,0.2069902,96618.0,96617.0,0.07920837]
[1739052060064,0.2079902,96618.0,96617.0,0.07920837]
[1739052060782,0.001,96618.0,96617.0,0.07920837]
[1739052061080,0.002,96618.0,96617.0,0.10980837]
[1739052061284,0.002,96618.0,96617.0,0.14290837]
[1739052061781,0.004,96618.0,96617.0,0.14290837]
[1739052063189,0.001,96618.0,96617.0,0.14290837]
[1739052063386,0.004,96618.0,96617.0,0.14290837]
[1739052064991,0.004,96618.0,96617.0,0.86450837]
[1739052065691,0.03245528,96630.0,96617.0,0.86450837]
[1739052065893,0.03245528,96630.0,96629.0,0.3608]
[1739052066191,0.03245528,96630.0,96629.0,0.4276]
[1739052067494,0.03645528,96630.0,96629.0,0.4276]
[1739052070592,0.03645528,96630.0,96629.0,0.44377206]
[1739052093707,0.03245528,96630.0,96629.0,0.44377206]
[1739052093908,0.03345528,96630.0,96629.0,0.44377206]
[1739052096110,0.2069642,96631.0,96629.0,0.44377206]
[1739052097316,0.2079642,96631.0,96629.0,0.44377206]
[1739052098012,0.2069642,96631.0,96629.0,0.44477206]
[1739052098208,0.1862803,96633.0,96629.0,0.44477206]
[1739052098519,0.206928,96648.0,96639.0,0.2069452]
[1739052098719,0.2069323,96646.0,96643.0,0.2069362]
[1739052099022,0.2069345,96644.0,96643.0,0.2069362]
[1739052100113,0.2069393,96642.0,96640.0,0.0668]
[1739052100922,0.2069393,96642.0,96640.0,0.08241701]
[1739052101122,0.2069393,96642.0,96640.0,0.28935991]
[1739052101522,0.2069303,96646.0,96641.0,0.3608]
[1739052101724,0.2069303,96646.0,96645.0,0.2069323]
[1739052103224,0.2069196,96651.0,96645.0,0.2069323]
[1739052103426,0.2069196,96651.0,96650.0,0.3608]
[1739052103826,0.2069196,96651.0,96650.0,0.42764]
[1739052105124,0.2069196,96651.0,96650.0,0.42864]
[1739052105322,0.2069196,96651.0,96650.0,0.6355616]
[1739052106324,0.00015528,96653.0,96650.0,0.42864]
[1739052106513,0.00015528,96653.0,96652.0,0.2069174]
[1739052107223,1e-08,96656.0,96650.0,0.42864]
[1739052107424,1e-08,96656.0,96653.0,0.3608]
[1739052108230,0.20690961,96656.0,96654.0,0.2069122]
[1739052109132,0.00010297,96664.0,96654.0,0.2069122]
[1739052109320,0.00010297,96664.0,96663.0,0.3608]
[1739052110334,0.20699467,96664.0,96663.0,0.3608]
[1739052110522,0.20699467,96664.0,96663.0,0.3618]
[1739052111717,0.20699467,96664.0,96663.0,0.3628]
[1739052112833,0.20699467,96664.0,96663.0,0.3782923]
[1739052115127,0.00010297,96664.0,96663.0,0.5851861]
[1739052116726,0.2068862,96667.0,96663.0,0.3782923]
[1739052116926,0.2068862,96667.0,96664.0,0.2068904]
[1739052118130,0.2068895,96665.0,96664.0,0.001]
[1739052118727,0.00155235,96669.0,96664.0,0.001]
[1739052119232,0.00155235,96669.0,96668.0,0.3608]
[1739052119434,0.0303,96677.0,96668.0,0.3608]
[1739052119729,0.2371639,96677.0,96676.0,0.3608]
[1739052119934,0.2371639,96677.0,96676.0,0.42756]
[1739052121034,0.42279608,96677.0,96676.0,0.42756]
[1739052121942,0.42279608,96677.0,96676.0,0.35641237]
[1739052122438,0.42279608,96677.0,96676.0,0.37204195]
[1739052123129,0.42279608,96677.0,96676.0,0.37304195]
[1739052123436,0.42279608,96677.0,96676.0,0.37404195]
[1739052124034,0.2371639,96677.0,96676.0,0.37404195]
[1739052127337,0.0303,96677.0,96676.0,0.37404195]
[1739052129242,0.0303,96677.0,96676.0,0.37304195]
[1739052129442,0.0303,96677.0,96676.0,0.37404195]
[1739052129644,0.0303,96677.0,96676.0,0.30728195]
[1739052129846,0.0303,96677.0,96676.0,0.37404195]
[1739052132346,0.03035626,96677.0,96676.0,0.37404195]
[1739052137247,0.0321,96692.0,96676.0,0.37404195]
[1739052137450,0.0639,96691.0,96680.0,0.06478389]
[1739052137747,0.2068553,96681.0,96680.0,0.06478389]
[1739052137946,0.2068604,96679.0,96676.0,0.37404195]
[1739052139341,0.2068604,96679.0,96676.0,0.37204195]
[1739052139544,0.2068604,96679.0,96676.0,0.37304195]
[1739052140440,0.2068604,96679.0,96676.0,0.37404195]
[1739052140643,0.0639,96691.0,96676.0,0.37404195]
[1739052140644,0.18565388,96683.0,96676.0,0.37404195]
[1739052140851,0.18565388,96683.0,96682.0,0.2068532]
[1739052142141,0.2068364,96690.0,96685.0,0.2068457]
[1739052142456,0.2068364,96690.0,96686.0,0.2736044]
[1739052143950,0.2068364,96690.0,96686.0,0.2746044]
[1739052144259,0.0307,96691.0,96686.0,0.06876]
[1739052144438,0.1,96700.0,96686.0,0.06876]
[1739052144644,0.1,96700.0,96698.0,0.2068176]
[1739052144843,0.1,96700.0,96699.0,0.06676]
[1739052145649,0.1,96700.0,96698.0,0.2068176]
[1739052145843,0.1,96700.0,96699.0,0.06676]
[1739052146250,0.1,96700.0,96699.0,0.06776]
[1739052146752,0.1,96700.0,96699.0,0.06676]
[1739052147251,0.1,96700.0,96699.0,0.06776]
[1739052148255,0.1,96700.0,96699.0,0.06876]
[1739052149953,0.1,96700.0,96699.0,0.02441333]
[1739052152441,0.032,96705.0,96699.0,0.02441333]
[1739052152645,0.2067764,96718.0,96704.0,0.3608]
[1739052152852,0.2067764,96718.0,96712.0,0.3608]
[1739052153048,0.2067764,96718.0,96713.0,0.06688]
[1739052153456,0.2067797,96717.0,96713.0,0.06688]
[1739052154044,0.21743237,96720.0,96713.0,0.06688]
[1739052154259,0.2067489,96731.0,96721.0,0.2067678]
[1739052154452,0.567552,96730.0,96723.0,0.206764]
[1739052154659,0.567552,96730.0,96724.0,0.06692]
[1739052154660,0.56811201,96730.0,96724.0,0.06692]
[1739052154859,0.2067682,96722.0,96720.0,0.3608]
[1739052155056,0.0309,96721.0,96713.0,0.001]
[1739052155356,0.2067748,96719.0,96714.0,0.06692]
[1739052156461,0.0309,96721.0,96714.0,0.06692]
[1739052156759,0.0309,96721.0,96714.0,0.06792]
[1739052157460,0.0309,96721.0,96718.0,0.206775]
[1739052157863,0.0309,96721.0,96719.0,0.06688]
[1739052159461,0.0309,96721.0,96719.0,0.06788]
[1739052160058,0.0309,96721.0,96719.0,0.06888]